bitfinex-derivatives/quotes_ETHF0:USTF0_20260207
["timestamp","ask_amount","ask_price","bid_price","bid_amount"]
[1770476020253,0.57368175,2019.0,2018.0,0.57060293]
[1770476022649,6.29115431,2019.0,2018.0,0.57060293]
[1770476022854,0.57368175,2018.9,2018.0,0.57060293]
[1770476025851,6.29115431,2019.1,2018.0,0.57060293]
[1770476026256,0.57368175,2019.0,2018.0,0.57060293]
[1770476028054,0.57368175,2019.2,2018.3,0.55462142]
[1770476031062,0.57873063,2019.3,2018.3,0.55462142]
[1770476033655,0.57368175,2019.1,2017.9,0.55462142]
[1770476033856,0.57368175,2018.9,2017.9,0.55462142]
[1770476034965,0.57368175,2018.9,2018.3,13.06320769]
[1770476035461,0.57368175,2019.0,2017.8,22.28158118]
[1770476035665,0.57368175,2019.0,2017.9,0.55462142]
[1770476035862,0.57368175,2018.9,2017.9,0.55462142]
[1770476039864,0.57368175,2018.8,2017.9,0.55462142]
[1770476040364,0.57368175,2018.8,2017.8,19.87197213]
[1770476040669,0.57368175,2018.8,2017.9,0.55462142]
[1770476044068,44.06347727,2018.8,2017.9,0.55462142]
[1770476044269,44.06347727,2018.9,2017.9,0.55462142]
[1770476044470,0.57368175,2018.8,2017.9,0.55462142]
[1770476044868,0.57368175,2018.9,2018.0,0.55462142]
[1770476045669,0.57368175,2018.7,2017.9,2.96423047]
[1770476045871,0.58229528,2018.6,2017.8,0.55897213]
[1770476047573,0.58229528,2018.3,2017.8,0.00435071]
[1770476047868,0.58229528,2018.3,2017.8,0.5831727]
[1770476048464,0.58229528,2018.5,2017.8,0.5831727]
[1770476052879,0.58229528,2018.5,2018.2,13.06320769]
[1770476053274,0.58229528,2018.5,2018.0,0.54804571]
[1770476055486,0.538705,2018.7,2018.0,0.54804571]
[1770476055880,0.538705,2018.9,2018.2,0.54804571]
[1770476064786,0.538705,2019.2,2018.5,0.54804571]
[1770476065890,0.538705,2019.2,2018.3,0.54804571]
[1770476066189,0.538705,2019.0,2018.1,19.91704571]
[1770476067792,0.538705,2019.0,2018.2,0.54804571]
[1770476068183,0.538705,2019.0,2018.5,13.06320769]
[1770476068695,0.538705,2019.0,2018.3,0.54804571]
[1770476074801,2.8942581,2019.1,2018.3,0.54804571]
[1770476075001,3.43801198,2019.3,2018.5,0.54804571]
[1770476075201,0.538705,2019.2,2018.5,0.54804571]
[1770476076300,0.538705,2019.2,2018.6,19.604]
[1770476078002,0.5605348,2019.1,2018.6,19.604]
[1770476078194,0.5605348,2018.9,2018.6,19.604]
[1770476079200,0.5605348,2019.0,2018.6,20.13950628]
[1770476079900,0.5605348,2019.0,2018.6,19.604]
[1770476080500,0.5605348,2018.9,2018.6,19.604]
[1770476082103,46.94458842,2019.1,2018.7,0.53550628]
[1770476082307,0.5605348,2019.1,2018.7,0.53550628]
[1770476082808,0.5605348,2019.1,2018.9,13.06320769]
[1770476083011,0.5605348,2019.2,2018.9,0.53550628]
[1770476083209,0.5605348,2019.2,2018.6,19.604]
[1770476083406,0.5605348,2019.2,2018.7,0.53550628]
[1770476084109,3.4547929,2019.2,2018.7,0.53550628]
[1770476084605,0.5605348,2019.2,2018.7,0.53550628]
[1770476084909,46.9496373,2019.3,2018.7,0.53550628]
[1770476085108,2.8942581,2019.2,2018.7,0.53550628]
[1770476085309,3.4547929,2019.2,2018.7,0.53550628]
[1770476086510,0.5605348,2019.1,2018.7,0.53550628]
[1770476087107,0.5605348,2019.2,2018.7,0.53550628]
[1770476088812,3.4547929,2019.2,2018.6,19.604]
[1770476089012,0.5605348,2019.1,2018.6,20.13950628]
[1770476089513,0.5605348,2019.1,2018.7,0.53550628]
[1770476090710,2.89930698,2019.3,2018.7,0.53550628]
[1770476090909,0.5605348,2019.2,2018.7,0.53550628]
[1770476091112,0.5605348,2019.2,2018.3,3.49973675]
[1770476091413,0.5605348,2019.0,2018.3,0.53550628]
[1770476093019,2.8942581,2019.1,2018.5,0.53550628]
[1770476093217,0.5605348,2019.1,2018.5,0.53550628]
[1770476093613,0.5605348,2019.0,2018.4,19.911]
[1770476093821,0.5605348,2018.9,2018.4,19.911]
[1770476095720,2.8942581,2018.9,2017.9,2.96423047]
[1770476096015,0.5605348,2018.6,2017.9,0.53550628]
[1770476097721,2.8942581,2018.4,2017.7,0.53550628]
[1770476098020,2.8942581,2018.4,2017.4,0.86349078]
[1770476098021,0.0172718,2018.1,2017.4,0.86349078]
[1770476098815,0.0172718,2018.1,2017.4,0.86801193]
[1770476101518,3.08186711,2018.3,2017.4,0.86801193]
[1770476101718,0.18760901,2018.3,2017.6,0.86967328]
[1770476102026,0.21943923,2018.5,2017.6,0.86967328]
[1770476103930,0.28305949,2018.3,2017.5,19.947]
[1770476104125,0.28305949,2018.3,2017.5,20.81914954]
[1770476106027,0.39764882,2018.2,2017.5,20.81914954]
[1770476106229,0.39764882,2018.2,2017.6,1.00754165]
[1770476107235,0.39764882,2018.2,2017.5,19.947]
[1770476108127,0.44954389,2018.1,2017.5,20.95454165]
[1770476109029,0.47730791,2018.0,2017.4,0.00452115]
[1770476109233,0.47730791,2018.0,2017.4,1.0120628]
[1770476109933,0.47730791,2018.0,2017.4,0.00452115]
[1770476110335,0.53271998,2017.9,2017.4,0.00452115]
[1770476110737,0.53271998,2017.9,2017.4,1.07826713]
[1770476111938,0.53271998,2017.9,2017.4,0.00452115]
[1770476112434,0.01,2018.0,2017.4,1.07826713]
[1770476112640,0.01,2018.0,2017.7,12.68623312]
[1770476112842,0.62346658,2018.0,2017.7,12.68623312]
[1770476113340,0.62346658,2018.0,2017.7,11.61248714]
[1770476113641,0.62346658,2018.0,2017.4,1.07826713]
[1770476114041,0.62346658,2018.0,2017.0,12.74274598]
[1770476114042,0.68521979,2017.7,2017.0,12.74274598]
[1770476114242,0.68521979,2017.7,2017.0,1.07374598]
[1770476115038,0.69155459,2017.7,2017.0,1.07918474]
[1770476117137,0.69155459,2017.7,2017.0,0.00543876]
[1770476117334,0.77178245,2017.4,2017.0,0.00543876]
[1770476117638,0.76634369,2017.3,2016.5,1.07374598]
[1770476118639,0.76634369,2017.3,2016.5,1.07857264]
[1770476119839,2.8942581,2017.6,2016.5,1.07857264]
[1770476120145,0.87891964,2017.6,2016.5,1.07857264]
[1770476120545,0.87891964,2017.4,2016.5,1.07857264]
[1770476123846,3.82712995,2017.6,2016.5,1.07857264]
[1770476124045,3.85611837,2017.7,2016.5,1.07857264]
[1770476124252,0.0063348,2017.7,2016.5,1.07857264]
[1770476124448,0.0063348,2017.7,2016.8,1.07374598]
[1770476124650,0.01,2018.0,2016.8,1.07374598]
[1770476125650,0.01454934,2018.0,2016.8,1.07374598]
[1770476128247,0.01454934,2018.0,2016.8,1.32192598]
[1770476128950,2.8942581,2018.4,2018.0,1.07374598]
[1770476129448,44.55645086,2018.6,2018.0,1.07374598]
[1770476129449,2.8942581,2018.6,2018.0,1.07374598]
[1770476130053,0.00428994,2018.6,2018.0,1.07887365]
[1770476130957,3.99980103,2018.9,2018.0,1.07887365]
[1770476131151,1.10554293,2018.9,2018.0,1.07887365]
[1770476131350,2.8942581,2019.0,2018.0,1.07887365]
[1770476131550,4.01622771,2019.0,2018.0,1.07887365]
[1770476131958,4.02128356,2019.0,2018.0,1.07887365]
[1770476132160,1.12196961,2018.9,2018.0,1.07887365]
[1770476134153,0.00505585,2019.0,2018.0,1.07887365]
[1770476136057,1.25285866,2019.2,2018.0,1.32689365]
[1770476136263,1.25285866,2018.9,2018.0,1.07887365]
[1770476137062,1.25755229,2018.9,2018.0,1.07887365]
[1770476139163,1.25755229,2018.9,2018.0,0.00512767]
[1770476139364,1.28211314,2018.6,2018.0,0.00512767]
[1770476140357,1.28211314,2018.6,2018.0,1.3818772]
[1770476144470,1.28211314,2018.6,2018.2,11.61248714]
[1770476146965,4.27672888,2018.8,2018.3,1.37674953]
[1770476147165,1.38247078,2018.7,2018.0,0.00512767]
[1770476147372,1.38247078,2018.7,2018.1,1.37674953]
[1770476150172,4.27672888,2018.7,2018.1,1.37674953]
[1770476151076,1.38247078,2018.6,2018.1,1.37674953]
[1770476151271,1.38247078,2018.6,2018.0,1.3818772]
[1770476151471,1.38247078,2018.5,2018.0,1.3818772]
[1770476151772,1.38247078,2018.5,2017.5,16.852]
[1770476151773,1.38247078,2018.4,2017.6,1.37674953]
[1770476151969,1.38247078,2018.3,2017.6,1.37674953]
[1770476152176,1.38247078,2018.2,2017.6,1.37674953]
[1770476152671,1.38247078,2018.2,2017.0,0.24815]
[1770476152672,1.38247078,2018.2,2017.1,1.37674953]
[1770476152871,1.38247078,2018.2,2017.1,1.38034466]
[1770476153169,1.38247078,2018.1,2017.1,1.38034466]
[1770476155676,2.89406612,2018.5,2017.4,0.2481]
[1770476155875,1.62571508,2018.9,2017.4,2.96423047]
[1770476156080,1.62571508,2018.9,2017.7,0.24807]
[1770476156267,1.62571508,2018.9,2017.8,19.848]
[1770476156980,1.62571508,2018.9,2017.9,0.35207837]
[1770476160182,1.62571508,2018.9,2018.4,0.4088524]
[1770476160380,0.00469363,2018.9,2018.4,0.4088524]
[1770476160575,1.6103303,2018.9,2017.9,0.4088524]
[1770476163082,1.6103303,2018.9,2017.7,20.31190946]
[1770476163280,1.6103303,2018.9,2017.8,0.43390946]
[1770476166479,1.6103303,2018.9,2017.8,0.49874595]
[1770476168279,1.6103303,2018.9,2017.9,0.51329264]
[1770476168780,1.6103303,2018.9,2018.0,0.51329264]
[1770476169983,1.6103303,2018.9,2018.1,0.52266263]
[1770476170388,0.00469363,2018.9,2018.1,0.52266263]
[1770476170579,1.72715015,2019.1,2018.3,0.52998856]
[1770476170784,1.72715015,2019.1,2018.4,20.51998856]
[1770476170975,1.72715015,2019.1,2018.5,0.53059296]
[1770476171688,1.73151549,2019.1,2018.5,0.53059296]
[1770476174487,1.72715015,2019.3,2018.5,0.53059296]
[1770476175390,1.73087401,2019.3,2018.5,0.53059296]
[1770476175789,1.73087401,2019.3,2018.9,11.61248714]
[1770476175985,1.73087401,2019.3,2018.9,11.61792376]
[1770476178588,1.73087401,2019.3,2018.9,0.00543662]
[1770476178789,0.80552929,2019.3,2018.9,0.63530108]
[1770476179184,0.80552929,2019.3,2018.9,0.00543662]
[1770476180092,0.80552929,2019.3,2018.9,1.47911934]
[1770476181283,0.00372386,2019.3,2019.1,1.47774547]
[1770476181785,0.00372386,2019.3,2019.0,21.60574547]
[1770476182190,1.72715015,2019.4,2019.1,1.51997946]
[1770476182386,1.72715015,2019.4,2019.0,21.64797946]
[1770476182788,1.72715015,2020.0,2019.1,1.51997946]
[1770476183192,1.73349201,2020.0,2019.1,1.51997946]
[1770476185293,1.73349201,2020.0,2019.0,20.128]
[1770476185889,1.72715015,2019.9,2019.0,20.128]
[1770476186592,1.72715015,2019.9,2019.0,21.6494249]
[1770476187498,1.72715015,2019.9,2019.1,1.52331481]
[1770476189293,1.72715015,2019.9,2019.0,20.128]
[1770476189800,1.72715015,2019.9,2019.0,21.6515182]
[1770476189994,1.72715015,2019.9,2019.1,1.5235182]
[1770476190588,1.72715015,2019.9,2019.5,9.67883142]
[1770476191592,1.72715015,2019.9,2019.3,1.8490932]
[1770476195501,1.72715015,2019.9,2019.1,1.8490932]
[1770476196196,1.72715015,2019.9,2018.9,0.30449905]
[1770476196197,1.72715015,2019.9,2018.9,0.00543662]
[1770476196399,1.98638363,2019.6,2018.9,0.00543662]
[1770476197300,1.98638363,2019.4,2018.3,2.95692595]
[1770476197495,1.98638363,2019.4,2017.7,8.85915909]
[1770476197496,1.98638363,2018.6,2017.3,1.98114672]
[1770476197699,45.51179539,2018.7,2017.2,0.30454108]
[1770476197700,1.98638363,2018.2,2017.2,0.30454108]
[1770476197899,1.98638363,2018.2,2017.2,1.98114672]
[1770476198294,6.95038363,2018.1,2017.2,0.00390407]
[1770476198498,1.98638363,2018.0,2017.2,0.00390407]
[1770476198898,6.95038363,2018.0,2017.2,0.00390407]
[1770476199195,1.98638363,2017.9,2017.2,0.00390407]
[1770476200303,6.95038363,2017.9,2016.8,1.98114672]
[1770476200498,1.98638363,2017.8,2016.1,1.98114672]
[1770476200697,1.98638363,2017.7,2016.7,1.98114672]
[1770476201201,1.98638363,2017.7,2016.1,1.98114672]
[1770476201507,1.98638363,2017.7,2016.1,1.98622533]
[1770476201897,1.98638363,2017.6,2016.1,1.98622533]
[1770476202103,1.98638363,2017.6,2016.1,2.29372407]
[1770476202104,1.98638363,2017.5,2016.1,2.29372407]
[1770476202801,1.98638363,2017.4,2016.1,2.29372407]
[1770476203307,1.98638363,2017.4,2016.1,1.98622533]
[1770476203601,1.98638363,2017.4,2016.1,2.28940759]
[1770476205408,1.98638363,2017.4,2016.2,1.98114672]
[1770476205607,1.98638363,2017.4,2016.7,9.67883142]
[1770476207008,1.98638363,2017.4,2016.5,1.98114672]
[1770476208604,1.98638363,2018.0,2016.5,2.22936672]
[1770476209001,1.98638363,2018.0,2016.7,1.98114672]
[1770476209406,1.9899824,2018.2,2016.7,1.98114672]
[1770476210010,1.98638363,2017.9,2016.7,1.98114672]
[1770476211411,1.98638363,2017.4,2016.7,1.98114672]
[1770476212407,1.98638363,2017.4,2016.5,1.98114672]
[1770476213209,1.98638363,2018.0,2016.7,1.98114672]
[1770476214314,0.00359877,2018.2,2017.3,1.98114672]
[1770476214507,0.00359877,2018.2,2017.4,1.98114672]
[1770476214706,1.98638363,2018.6,2017.4,1.98114672]
[1770476215409,1.98638363,2018.4,2017.4,1.98114672]
[1770476215812,1.99195621,2018.4,2017.4,1.98114672]
[1770476218411,0.00557258,2018.4,2017.4,1.98114672]
[1770476218615,1.99195621,2018.4,2017.4,1.98114672]
[1770476220118,1.98638363,2018.3,2017.3,1.98114672]
[1770476220508,1.98638363,2018.3,2018.0,6.64086761]
[1770476220714,1.98638363,2018.3,2017.6,1.98114672]
[1770476221109,1.98638363,2018.3,2017.4,2.08184882]
[1770476221712,1.98638363,2018.3,2017.4,2.08535931]
[1770476222020,1.26594681,2018.9,2017.8,2.08241118]
[1770476222208,1.96362359,2018.9,2018.0,2.08241118]
[1770476222611,1.26594681,2018.9,2018.0,2.08241118]
[1770476223017,0.00470063,2018.9,2018.0,2.08241118]
[1770476224515,2.73645722,2019.3,2018.0,2.08241118]
[1770476224820,0.66896528,2019.3,2018.1,2.09320353]
[1770476225018,0.6652577,2019.7,2018.7,2.09320353]
[1770476225216,0.6652577,2020.0,2018.8,2.09320353]
[1770476225417,0.67117506,2020.0,2018.8,2.09320353]
[1770476228813,0.00591736,2020.0,2018.8,2.09320353]
[1770476229022,0.00591736,2020.0,2019.0,2.19164276]
[1770476229318,0.00591736,2020.0,2019.0,2.48204534]
[1770476229519,4.90736511,2020.8,2019.3,2.19164276]
[1770476229916,2.06749194,2020.8,2019.3,2.19164276]
[1770476230523,2.07142617,2020.8,2019.3,2.19164276]
[1770476230821,2.06749194,2020.5,2019.3,2.19164276]
[1770476232123,2.06749194,2020.2,2019.3,2.19164276]
[1770476232522,2.07142617,2020.8,2019.3,2.19164276]
[1770476232719,2.06749194,2020.2,2019.3,2.19164276]
[1770476232923,2.06749194,2020.5,2019.3,2.19164276]
[1770476233423,2.8438074,2020.8,2019.3,2.19164276]
[1770476233424,2.06749194,2020.2,2019.3,2.19164276]
[1770476233625,2.06749194,2019.9,2019.1,2.06873321]
[1770476234127,2.06749194,2020.2,2019.1,2.06873321]
[1770476236235,2.31522194,2020.5,2019.1,2.06873321]
[1770476237329,2.06749194,2020.5,2019.1,2.06873321]
[1770476239724,0.00393423,2020.8,2019.1,2.06873321]
[1770476239931,2.06749194,2020.7,2019.1,2.06873321]
[1770476241023,2.06749194,2020.4,2019.1,2.06873321]
[1770476244426,2.83987317,2020.6,2019.4,2.03942836]
[1770476244629,2.8438074,2020.8,2019.4,2.03942836]
[1770476244827,0.00393423,2020.8,2019.4,2.03942836]
[1770476246721,2.06749194,2020.7,2019.4,2.03942836]
[1770476246922,2.06749194,2020.5,2019.4,2.03942836]
[1770476248331,2.83987317,2020.7,2019.4,2.03942836]
[1770476248526,4.91129934,2020.8,2019.4,2.03942836]
[1770476249232,2.83987317,2020.7,2019.4,2.03942836]
[1770476249827,2.06749194,2020.5,2019.4,2.03942836]
[1770476250032,2.83987317,2020.7,2019.4,2.03942836]
[1770476250632,2.83987317,2020.7,2019.4,2.28728836]
[1770476250832,2.06749194,2020.7,2019.5,2.02935799]
[1770476251533,4.90736511,2020.7,2019.5,2.02935799]
[1770476252729,2.06749194,2019.9,2019.3,2.02424254]
[1770476253029,2.83987317,2020.1,2019.3,2.02424254]
[1770476253334,2.83987317,2020.0,2019.3,2.02424254]
[1770476253833,2.83987317,2019.9,2019.3,2.02424254]
[1770476256429,2.83987317,2020.1,2019.3,2.02424254]
[1770476256623,2.83987317,2020.2,2019.3,2.02424254]
[1770476258332,2.83987317,2020.2,2019.3,1.04485858]
[1770476259132,2.83987317,2020.3,2019.3,1.04485858]
[1770476263636,2.83987317,2020.4,2019.3,1.04485858]
[1770476263841,2.83987317,2020.4,2019.4,1.5347047]
[1770476264239,2.83987317,2020.3,2019.4,1.5347047]
[1770476264433,46.03908327,2020.4,2019.4,1.5347047]
[1770476264638,2.83987317,2020.3,2019.4,1.5347047]
[1770476269247,2.88721081,2020.3,2019.4,1.5347047]
[1770476271541,46.08642091,2020.3,2019.4,1.5347047]
[1770476271850,2.88721081,2020.2,2019.4,1.5347047]
[1770476279739,2.88721081,2020.3,2019.4,1.5347047]
[1770476280455,0.5613542,2020.8,2019.7,0.56990006]
[1770476280644,0.5613542,2020.8,2019.9,0.56990006]
[1770476281045,0.55741997,2020.7,2019.9,0.56990006]
[1770476282853,0.55741997,2020.7,2019.7,0.56990006]
[1770476283456,6.27882676,2020.8,2019.7,0.56990006]
[1770476283651,0.00393423,2020.8,2019.9,0.56990006]
[1770476284051,0.4427012,2021.0,2019.9,0.56990006]
[1770476284554,0.4427012,2021.2,2020.0,0.56990006]
[1770476284953,0.44632142,2021.2,2020.0,0.56990006]
[1770476285956,0.00362022,2021.2,2020.0,3.53456862]
[1770476286153,0.00362022,2021.2,2020.1,0.579503]
[1770476286355,0.00362022,2021.2,2020.1,3.54417156]
[1770476286657,0.00362022,2021.2,2020.2,0.579503]
[1770476286848,7.4036122,2022.0,2020.4,2.96466856]
[1770476287052,0.45487229,2022.2,2020.9,0.579503]
[1770476287254,0.45487229,2022.4,2021.0,0.579503]
[1770476287854,0.46099324,2022.4,2021.0,0.58303683]
[1770476288253,0.46099324,2022.4,2021.2,0.579503]
[1770476289460,0.46099324,2022.4,2021.0,0.58303683]
[1770476289461,0.45858658,2022.0,2021.0,0.58303683]
[1770476289659,0.45858658,2022.0,2021.1,0.579503]
[1770476289857,0.00612095,2022.4,2021.1,0.579503]
[1770476290361,0.46754052,2022.4,2021.1,0.579503]
[1770476290557,0.46163995,2022.2,2021.0,0.55629404]
[1770476291557,0.46163995,2022.2,2021.0,0.00353383]
[1770476291757,0.46163995,2022.2,2021.0,0.55629404]
[1770476292359,0.46476041,2021.6,2021.0,0.00353383]
[1770476293153,0.46476041,2021.6,2021.0,0.55629404]
[1770476293557,0.46476041,2021.8,2021.0,0.55629404]
[1770476295563,0.46476041,2021.8,2021.0,0.00353383]
[1770476296354,0.46476041,2021.8,2020.6,0.55276021]
[1770476296756,0.46476041,2021.8,2020.5,0.55276021]
[1770476296961,0.46878455,2021.4,2020.5,0.55276021]
[1770476297363,0.46878455,2021.4,2020.5,0.55649889]
[1770476297864,0.46783921,2021.8,2020.5,0.55649889]
[1770476302974,0.46977442,2022.2,2020.6,0.55276021]
[1770476303768,0.46977442,2022.2,2020.8,0.55276021]
[1770476305472,0.46977442,2022.2,2020.9,0.55276021]
[1770476306972,0.47518513,2022.0,2020.9,0.55276021]
[1770476310372,43.82968657,2022.0,2020.9,0.55276021]
[1770476310574,0.47564943,2021.9,2020.9,0.55276021]
[1770476311167,0.47564943,2021.9,2021.0,0.55276021]
[1770476313579,0.46154798,2022.1,2021.0,0.55276021]
[1770476314176,0.46691483,2022.0,2021.0,0.55276021]
[1770476317076,0.4642943,2021.9,2021.0,0.55276021]
[1770476317282,0.4642943,2021.8,2021.0,0.55276021]
[1770476320177,0.46554658,2021.7,2021.0,0.55276021]
[1770476323786,0.46554658,2021.7,2020.9,25.58879011]
[1770476323985,0.46554658,2021.7,2021.0,0.58879011]
[1770476327188,0.45653201,2021.6,2021.0,0.58879011]
[1770476329193,43.81122252,2021.8,2021.0,0.58879011]
[1770476333189,43.35450144,2021.8,2021.0,0.58879011]
[1770476333388,0.44022159,2022.2,2021.4,0.58879011]
[1770476334589,0.44153131,2022.1,2021.3,0.58879011]
[1770476334892,0.44153131,2022.0,2021.3,0.58879011]
[1770476335393,0.44153131,2021.9,2021.1,0.58879011]
[1770476337897,0.44054373,2022.0,2021.1,0.58879011]
[1770476338690,0.44054373,2021.7,2021.0,0.58879011]
[1770476338891,0.44054373,2021.4,2020.9,25.0]
[1770476339096,2.05680924,2021.5,2020.9,25.0]
[1770476339394,43.35450144,2021.6,2020.9,25.0]
[1770476339791,43.35450144,2021.4,2020.9,25.0]
[1770476340804,2.05680924,2021.3,2020.9,24.98380943]
[1770476340998,45.41131068,2021.3,2020.5,0.00373868]
[1770476341901,43.35450144,2021.2,2020.5,0.00373868]
[1770476342200,45.41131068,2021.3,2020.5,0.00373868]
[1770476342597,45.41131068,2021.0,2020.5,0.00373868]
[1770476342802,45.41131068,2021.0,2019.5,2.96308513]
[1770476342803,43.35450144,2020.9,2019.5,2.96308513]
[1770476343004,7.8214925,2021.0,2019.6,0.59921972]
[1770476343005,43.35450144,2020.8,2019.6,0.59921972]
[1770476343206,43.35450144,2020.9,2019.6,0.59921972]
[1770476343801,43.35450144,2020.9,2019.6,0.60559007]
[1770476343802,0.00712117,2020.8,2019.6,0.60559007]
[1770476344400,0.00712117,2020.8,2019.8,0.59133885]
[1770476346004,43.35450144,2021.2,2019.8,0.59133885]
[1770476346207,14.55754794,2022.7,2019.8,0.59133885]
[1770476346208,43.35779681,2021.9,2020.8,0.5930779]
[1770476346407,0.00329537,2021.8,2020.8,0.5930779]
[1770476346808,0.00329537,2021.9,2020.8,0.5930779]
[1770476347003,0.00740329,2021.9,2020.8,0.5930779]
[1770476347211,0.0033151,2021.8,2020.8,0.5930779]
[1770476348209,43.35450144,2021.8,2020.3,0.60189992]
[1770476348408,0.24761,2021.5,2020.1,2.96308513]
[1770476348609,45.41131068,2021.2,2020.0,0.60189992]
[1770476348810,50.37531068,2021.2,2020.0,0.60189992]
[1770476349008,45.41131068,2021.2,2020.0,0.60189992]
[1770476349210,2.05680924,2021.2,2020.0,0.60189992]
[1770476349508,45.41131068,2021.2,2020.0,0.60189992]
[1770476349910,0.00270062,2021.1,2020.0,0.60189992]
[1770476351706,0.0025331,2020.8,2019.8,0.59337019]
[1770476352312,43.35450144,2021.1,2019.8,0.59337019]
[1770476353414,2.05680924,2020.6,2019.6,0.60136731]
[1770476353613,43.35450144,2020.7,2019.6,0.60136731]
[1770476353812,0.02257091,2020.6,2019.6,0.60136731]
[1770476358014,0.03797676,2021.3,2020.3,0.58981621]
[1770476363409,0.03795348,2021.2,2020.3,0.58981621]
[1770476364616,0.03825297,2021.4,2020.3,0.58981621]
[1770476365320,0.03825297,2021.6,2020.4,0.58981621]
[1770476367120,0.03784817,2021.5,2020.4,0.58981621]
[1770476368025,0.03863653,2021.4,2020.4,0.58981621]
[1770476368519,0.03863653,2021.5,2020.4,0.58981621]
[1770476369823,43.39313797,2021.7,2020.4,0.58981621]
[1770476370225,0.04176005,2021.6,2020.4,0.58981621]
[1770476370421,43.35450144,2021.7,2020.6,0.58981621]
[1770476370620,43.40036941,2021.9,2020.8,0.58981621]
[1770476370819,0.04176005,2021.8,2020.8,0.58981621]
[1770476371120,0.04176005,2021.4,2020.8,0.58981621]
[1770476371711,0.04176005,2021.4,2020.6,0.58981621]
[1770476372316,0.04234212,2021.1,2020.4,0.58981621]
[1770476373622,43.35450144,2021.2,2020.4,0.58981621]
[1770476373823,43.39684356,2021.2,2020.4,0.58981621]
[1770476374018,0.04234212,2021.2,2020.4,0.58981621]
[1770476374425,45.46340171,2021.4,2020.4,0.58981621]
[1770476374724,0.04209103,2021.3,2020.4,0.58981621]
[1770476381922,0.03516955,2021.1,2020.0,0.57690068]
[1770476382225,0.03516955,2020.6,2020.0,0.57690068]
[1770476384416,0.03197648,2020.5,2019.7,0.57849722]
[1770476384623,0.03197648,2020.6,2019.7,0.57849722]
[1770476386325,43.35450144,2020.7,2019.7,0.57849722]
[1770476386519,43.3841263,2020.7,2019.7,0.57849722]
[1770476388727,0.03023688,2020.6,2019.7,0.57849722]
[1770476389225,43.35450144,2020.7,2019.9,0.57936702]
[1770476389428,43.35450144,2021.1,2019.9,0.57936702]
[1770476390227,43.38424179,2021.1,2019.9,0.57936702]
[1770476390420,0.02974035,2021.0,2019.9,0.57936702]
[1770476391126,43.35450144,2021.1,2019.9,0.57936702]
[1770476391429,43.38424179,2021.1,2019.9,0.57936702]
[1770476391628,0.02974035,2021.0,2019.9,0.57936702]
[1770476392031,0.04252119,2020.9,2019.9,0.57936702]
[1770476398338,43.35450144,2021.2,2019.9,0.57936702]
[1770476398535,43.39425187,2021.3,2019.9,0.57936702]
[1770476398729,0.03975043,2021.2,2019.9,0.57936702]
[1770476400229,43.39425187,2021.2,2019.9,0.57936702]
[1770476400431,43.35450144,2021.2,2019.9,0.57936702]
[1770476401033,43.40177616,2021.3,2020.0,0.5708481]
[1770476401533,0.01,2021.4,2020.2,3.53393323]
[1770476401831,0.01,2021.4,2020.4,0.5708481]
[1770476402038,43.35450144,2021.8,2020.5,0.56781772]
[1770476402336,0.05333547,2021.7,2020.5,0.56781772]
[1770476402940,0.05333547,2021.2,2020.1,0.56781772]
[1770476403234,0.05333547,2021.0,2020.1,0.56781772]
[1770476404438,43.35450144,2021.1,2020.1,0.56781772]
[1770476404737,43.39805091,2021.1,2020.1,0.56781772]
[1770476404941,0.04354947,2021.0,2020.1,0.56781772]
[1770476405445,0.04354947,2020.9,2020.1,0.56781772]
[1770476406440,12.61130837,2022.0,2017.9,17.35689529]
[1770476406441,1.13986,2020.0,2017.9,17.35689529]
[1770476406645,0.0488894,2017.9,2016.2,16.21526483]
[1770476406950,0.54487924,2016.3,2015.6,0.5668843]
[1770476407137,3.43321873,2016.0,2014.8,0.5668843]
[1770476407336,12.17867898,2016.4,2012.9,1.14381]
[1770476407337,2.88833949,2015.4,2014.9,0.5668843]
[1770476407533,43.32509238,2015.0,2014.7,0.5668843]
[1770476407745,11.89273644,2014.9,2014.1,0.5668843]
[1770476408044,42.94524772,2014.6,2014.3,0.5668843]
[1770476408237,5.77667898,2015.2,2014.3,0.5668843]
[1770476408437,0.00630494,2015.4,2014.5,0.5668843]
[1770476408632,0.55459515,2015.9,2014.5,0.5668843]
[1770476408832,0.55459515,2015.9,2014.7,0.5668843]
[1770476409341,0.55459515,2015.9,2014.9,0.5668843]
[1770476409539,0.56098872,2015.9,2014.9,0.57040741]
[1770476409742,0.56098872,2015.9,2015.1,0.5668843]
[1770476410243,0.56098872,2015.9,2015.2,74.17765689]
[1770476410446,0.00639357,2015.9,2015.2,0.5668843]
[1770476410748,0.55459515,2017.2,2015.2,0.5668843]
[1770476410944,0.55459515,2017.2,2015.4,4.77616046]
[1770476411241,4.666538,2016.9,2015.4,4.77616046]
[1770476411440,4.666538,2016.9,2015.6,4.77616046]
[1770476411641,4.670811,2016.9,2015.6,4.77616046]
[1770476411946,4.670811,2016.9,2015.8,4.77616046]
[1770476412343,4.670811,2016.9,2016.0,4.77616046]
[1770476414152,0.004273,2016.9,2016.2,4.77616046]
[1770476415050,0.004273,2016.9,2016.3,73.61077259]
[1770476415346,0.004273,2016.9,2016.4,4.77616046]
[1770476415549,0.004273,2016.9,2016.4,4.78201825]
[1770476415746,0.004273,2016.9,2016.5,78.38693305]
[1770476416139,0.004273,2016.9,2016.6,4.77616046]
[1770476416539,0.004273,2016.9,2016.7,73.61077259]
[1770476418352,4.670811,2016.9,2016.4,0.00585779]
[1770476418652,0.004273,2016.9,2016.5,76.42698908]
[1770476419042,0.004273,2016.9,2016.6,4.77616046]
[1770476419352,4.666538,2017.5,2016.6,4.77616046]
[1770476419648,4.666538,2017.5,2016.8,4.77616046]
[1770476419850,0.00998524,2017.5,2016.8,4.77616046]
[1770476420048,4.666538,2017.8,2017.0,4.77616046]
[1770476420248,4.67007521,2017.8,2017.0,4.77616046]
[1770476420551,4.67007521,2017.8,2017.2,4.77616046]
[1770476421149,4.67007521,2017.8,2017.3,76.42698908]
[1770476421352,4.67007521,2017.8,2017.3,4.77616046]
[1770476421648,4.666538,2018.4,2017.5,4.77616046]
[1770476421952,18.24640389,2018.2,2017.5,4.77616046]
[1770476422154,18.24640389,2018.2,2017.7,4.77616046]
[1770476422355,18.24640389,2018.2,2017.9,4.77616046]
[1770476422551,18.25080724,2018.2,2017.9,4.78073338]
[1770476422854,4.666538,2018.8,2018.0,4.77616046]
[1770476423354,4.666538,2019.0,2018.2,4.77616046]
[1770476423750,4.666538,2019.8,2018.4,4.77616046]
[1770476423946,0.00511624,2019.0,2018.6,4.77616046]
[1770476424456,0.00511624,2019.0,2018.7,71.65082862]
[1770476425053,4.666538,2019.5,2018.8,4.77616046]
[1770476425456,4.666538,2019.7,2019.0,4.77616046]
[1770476426052,4.67272123,2019.7,2019.0,4.77616046]
[1770476426258,4.67272123,2019.7,2019.1,71.65082862]
[1770476426458,4.67272123,2019.7,2019.1,76.42698908]
[1770476427659,0.00618323,2019.7,2019.2,4.77616046]
[1770476427861,0.25,2020.0,2019.2,4.77616046]